Cogmind - Beta 11.1 @@@ ROGUE MODE // 2022.06.22 @ 11:41:55 Player: Benkyo Result: Destroyed self with Mini Grenade Launcher Performance ------------- Evolutions (1) 500 Regions Visited (6) 1200 Robots Destroyed (77) 385 Value Destroyed (1359) 1359 Prototype IDs (10) 200 Alien Tech Used (0) 0 Bonus (259) 259 TOTAL SCORE: 3903 Bonus ------- High Alert Combat Kills 11 Follower Combat Kills 276 Friendly Fire -28 Cogmind --------- Core Integrity 0/400 Matter 280/300 Energy 310/310 System Corruption 0% Temperature Cool (0) Movement Treading (330) Ox2 Location -8/Mines Parts ------- > --- POWER (1) -------- Heavy Deuterium Engine > --- PROPULSION (2) --- Armored Treads Armored Treads > --- UTILITY (4) ------ Heat Sink Huge Storage Unit Launcher Guidance Computer Experimental Core Analyzer > --- WEAPON (2) ------- Advanced Beam Cannon Mini Grenade Launcher > --- INVENTORY (25) --- Light Treads Light Treads Light Treads Light Treads Armored Treads Makeshift Leg Advanced Myomer Leg High-capacity Storage Unit High-capacity Matter Pod (200) Structural Scanner Machine Analyzer Sensor Array Improved Terrain Scanner Advanced Launcher Guidance Computer Hacking Suite Makeshift Hacking Suite Makeshift System Shield Advanced Component Analysis Suite Improved System Guard Heavy Assault Rifle Improved Assault Rifle Improved Assault Rifle Rocket Launcher Mini Grenade Launcher Mace Peak State ------------ > --- POWER ------------ Heavy Deuterium Engine > --- PROPULSION ------- Armored Treads Armored Treads > --- UTILITY ---------- Heat Sink Huge Storage Unit Launcher Guidance Computer Experimental Core Analyzer > --- WEAPON ----------- Advanced Beam Cannon Improved Assault Rifle > --- INVENTORY -------- Light Treads Light Treads Light Treads Light Treads Armored Treads Advanced Myomer Leg High-capacity Matter Pod Structural Scanner Machine Analyzer Sensor Array Improved Terrain Scanner Advanced Launcher Guidance Computer Hacking Suite Makeshift Hacking Suite Makeshift System Shield Advanced Component Analysis Suite Improved System Guard Heavy Assault Rifle Improved Assault Rifle Rocket Launcher Mini Grenade Launcher Mini Grenade Launcher Mace [Rating: 40] Favorites ----------- Power Heavy Ion Engine Engine Heavy Ion Engine Propulsion Armored Treads Treads Armored Treads Leg Advanced Myomer Leg Flight Unit VTOL Module Utility Structural Scanner Device Structural Scanner Storage Large Storage Unit Processor Visual Processing Unit Protection Light Armor Plating Weapon Advanced Beam Cannon Energy Gun Heavy EM Pulse Gun Energy Cannon Advanced Beam Cannon Ballistic Gun Light Assault Rifle Ballistic Cannon Improved Light Cannon Launcher Mini Grenade Launcher Build | -11 -10 -10 -9 -9 -9 -8 ------- Run | Scr Mat Min Mat Min Exi Min Slots Evolved 2 | . . . 2 . . . Power . | . . . . . . . Propulsion . | . . . . . . . Utility 2 | . . . 2 . . . Weapon . | . . . . . . . Parts Attached 76 | 7 12 1 25 8 22 1 Power 7 | 1 1 . 2 . 3 . Engine 7 | 1 1 . 2 . 3 . Core . | . . . . . . . Reactor . | . . . . . . . Propulsion 17 | 2 2 . 8 . 5 . Treads 15 | 2 2 . 7 . 4 . Leg 1 | . . . . . 1 . Wheel . | . . . . . . . Hover . | . . . . . . . Flight 1 | . . . 1 . . . Utility 26 | 2 7 . 7 4 6 . Device 9 | 1 . . 5 2 1 . Storage 11 | 1 6 . 1 . 3 . Processor 3 | . . . 1 . 2 . Hackware . | . . . . . . . Protection 3 | . 1 . . 2 . . Artifact . | . . . . . . . Weapon 26 | 2 2 1 8 4 8 1 Energy Gun 1 | . . . 1 . . . Energy Cannon 3 | . . . 2 . 1 . Ballistic Gun 15 | 2 1 1 4 2 5 . Ballistic Cannon 1 | . 1 . . . . . Launcher 6 | . . . 1 2 2 1 Special Weapon . | . . . . . . . Impact Weapon . | . . . . . . . Slashing Weapon . | . . . . . . . Piercing Weapon . | . . . . . . . Special Melee Weapon . | . . . . . . . Unidentified Prototypes 3 | . . . . . 3 . Parts Lost 10 | . . . 1 3 6 . Power 2 | . . . . . 2 . Propulsion 1 | . . . . . 1 . Utility 5 | . . . 1 3 1 . Weapon 2 | . . . . . 2 . Highest Loss Streak 5 | . . . 1 2 5 . To Critical Strikes 5 | . . . . . 5 . Average Slot Usage (%) 98 | . 99 100 99 99 97 100 Engine 10 | . 14 14 11 11 8 11 Treads 23 | . 27 28 21 22 22 22 Device 16 | . 3 . 20 28 18 11 Storage 12 | . 14 14 11 11 14 11 Processor 6 | . . . 11 . 10 22 Protection 3 | . 10 14 . 4 . . Energy Cannon 6 | . . . 10 11 7 11 Ballistic Gun 14 | . 23 14 10 10 14 11 Ballistic Cannon 2 | . 4 14 . . . . Naked Turns . | . . . . . . . Heaviest Build 101 | 13 90 33 98 101 99 99 Greatest Support 40 | 40 40 40 40 40 40 40 Greatest Overweight (x) 2 | . 2 . 2 2 2 2 Average Overweight (x) . | . . . . 2 . 2 Largest Inventory Capacity 25 | 8 25 15 25 25 25 25 Average Capacity 19 | 7 15 15 18 25 20 25 Most Carried 25 | 6 17 15 23 25 25 25 Average Carried 17 | 4 12 15 17 23 18 25 Final Capacity 25 | 8 15 15 25 25 25 25 Final Carried 25 | 6 15 15 23 25 25 25 Class Distribution -------------------- 73% | Mutant 26% | Scavenger-Mutant Dominant Class ---------------- Mutant | -10/Materials Mutant | -10/Mines Mutant | -9/Materials Mutant | -9/Mines Mutant | -9/Exiles Scavenger-Mutant | -8/Mines Resources | -11 -10 -10 -9 -9 -9 -8 ----------- Run | Scr Mat Min Mat Min Exi Min Matter Collected 2198 | 282 490 60 419 212 735 . Remotely . | . . . . . . . Salvage Created 2485 | 112 460 69 994 484 366 . Parts 187 | 6 35 9 61 32 44 . Haulers Intercepted 8 | . 2 . 6 . . . Recyclers Shooed 3 | . 2 . . 1 . . Parts Field Recycled . | . . . . . . . Retrieved Matter . | . . . . . . . Parts Self-Destructed . | . . . . . . . Prevented . | . . . . . . . Kills | -11 -10 -10 -9 -9 -9 -8 ------- Run | Scr Mat Min Mat Min Exi Min Combat Hostiles Destroyed 67 | . 11 6 16 30 4 . Guns 23 | . 10 2 5 2 4 . Cannons 20 | . 1 4 10 5 . . AOE 23 | . . . . 23 . . Classes Destroyed 15 | 2 4 . 3 4 2 . Worker 3 | . . . . 3 . . Tunneler 2 | 1 . . . 1 . . Hauler 8 | . 2 . 6 . . . Recycler 2 | 1 . . . 1 . . Mechanic 1 | . . . 1 . . . Operator 1 | . . . 1 . . . Turret 1 | . . . . . 1 . Watcher 6 | . 3 . 3 . . . Swarmer 21 | . 5 6 6 4 . . Grunt 14 | . 6 . 5 3 . . Brawler 1 | . . . . 1 . . Sentry 5 | . . . 5 . . . Demolisher 2 | . . . . 2 . . Zionite 7 | . . . . . 7 . Assembled 23 | . . . . 20 3 . Best Kill Streak 23 | 2 3 3 3 23 4 . Combat Bots Only 20 | . 3 3 3 20 3 . Max Kills in Single Turn 7 | 1 1 1 1 7 1 . Gunslinging . | . . . . . . . Exploded 7 | . . . . 7 . . Melee . | . . . . . . . Uniques/NPCs Destroyed 4 | . . . . . 4 . 8R-AWN (-9/Exiles) EX-DEC (-9/Exiles) EX-BIN (-9/Exiles) EX-HEX (-9/Exiles) Combat | -11 -10 -10 -9 -9 -9 -8 -------- Run | Scr Mat Min Mat Min Exi Min Damage Taken 3282 | . 310 157 528 873 1352 62 Core 493 | . 31 23 122 33 238 46 Absorbed by Shields . | . . . . . . . Regen/Repaired (Parts) 305 | . 184 . 121 . . . Core Remaining (%) 89 | 100 . 78 . . . . Volleys Fired 274 | 6 67 10 74 26 90 1 Largest 2 | 2 2 2 2 2 2 1 Hottest 91 | 40 59 59 91 91 91 30 Shots Fired 511 | 12 125 20 147 43 163 1 Gun 347 | 12 110 10 74 17 124 . Cannon 139 | . 15 10 73 17 24 . Launcher 25 | . . . . 9 15 1 Special . | . . . . . . . Kinetic 384 | 12 125 20 86 17 124 . Thermal 102 | . . . 61 17 24 . Explosive 25 | . . . . 9 15 1 Electromagnetic . | . . . . . . . Robot Hit Streak 32 | 4 12 2 5 8 32 . Robot Miss Streak 5 | 1 3 5 5 3 2 1 Penetration Max . | . . . . . . . Secondary Targets . | . . . . . . . Shots Hit Robots 317 | 8 83 6 71 24 125 . Core Hits 179 | 5 36 6 32 58 42 . Critical Kills 4 | . 1 . 2 . 1 . Critical Parts Destroyed . | . . . . . . . Critical Strikes 8 | . 1 2 3 . 2 . Meltdown 2 | . . . 1 . 1 . Destroy 3 | . 1 . 1 . 1 . Blast 3 | . . 2 1 . . . Melee Attacks . | . . . . . . . Impact . | . . . . . . . Slashing . | . . . . . . . Piercing . | . . . . . . . Sneak Attacks . | . . . . . . . Combat Hostiles . | . . . . . . . Follow-up Attacks . | . . . . . . . Damage Inflicted 6706 | 60 750 124 1321 2102 2349 . Guns 2767 | 60 649 20 314 147 1577 . Cannons 1934 | . 101 104 1007 310 412 . Explosions 2005 | . . . . 1645 360 . Melee . | . . . . . . . Ramming . | . . . . . . . Kinetic 3171 | 60 750 124 513 147 1577 . Thermal 1530 | . . . 808 310 412 . Explosive 2005 | . . . . 1645 360 . Electromagnetic . | . . . . . . . Impact . | . . . . . . . Slashing . | . . . . . . . Piercing . | . . . . . . . Highest Corruption . | . . . . . . . Average Corruption . | . . . . . . . Corruption Purged . | . . . . . . . Corruption Blocked . | . . . . . . . Overload Shots . | . . . . . . . Overflow Damage 72 | . . . 14 58 . . Projectiles 14 | . . . 14 . . . Explosions 58 | . . . . 58 . . Melee . | . . . . . . . Knockbacks 2 | . 2 . . . . . Impact . | . . . . . . . Kinetic 2 | . 2 . . . . . Secondary . | . . . . . . . Self-Inflicted Damage 148 | . . . . 102 . 46 Shots 5 | . . . . 4 . 1 Rammed . | . . . . . . . Targets Rammed . | . . . . . . . Kicked . | . . . . . . . Crushed . | . . . . . . . Highest Temperature 106 | . 106 69 24 4 . . Average Temperature 18 | . 17 33 10 3 . . Received Heat Transfer 457 | . 108 . 180 89 80 . Siege Activations . | . . . . . . . Robots Corrupted . | . . . . . . . Combat Hostiles . | . . . . . . . Parts Fried . | . . . . . . . Impact Corruptions . | . . . . . . . Robots Melted 2 | . . . 1 . 1 . Combat Hostiles 1 | . . . 1 . . . Parts Melted 15 | . . . 3 . 12 . Heat Transferred 2738 | . . . 1443 555 740 . Parts Sabotaged . | . . . . . . . Parts Stolen . | . . . . . . . Parts Stripped . | . . . . . . . Power Chain Reactions . | . . . . . . . Missiles Intercepted . | . . . . . . . Alert | -11 -10 -10 -9 -9 -9 -8 ------- Run | Scr Mat Min Mat Min Exi Min Peak Influence 422 | 10 202 140 422 198 . . Initial 120 | . 6 . . 120 . . Average 135 | 4 59 50 240 106 . . Maximum Alert Level 2 | . 1 . 2 . . . Low Security (%) 76 | 100 98 100 37 100 . 100 Level 1 23 | . 1 . 60 . . . Level 2 . | . . . 1 . . . Level 3 . | . . . . . . . Level 4 . | . . . . . . . Level 5 . | . . . . . . . High Security . | . . . . . . . Max Security . | . . . . . . . Squads Dispatched 5 | . 1 . 4 . . . Investigation 3 | . . . 3 . . . Extermination . | . . . . . . . Reinforcement 2 | . 1 . 1 . . . Assault . | . . . . . . . Garrison . | . . . . . . . Intercept . | . . . . . . . Searches Triggered . | . . . . . . . Construction Impeded . | . . . . . . . Haulers Reinforced . | . . . . . . . Active Scanning Responses . | . . . . . . . Cargo Convoy Interrupts . | . . . . . . . Stealth | -11 -10 -10 -9 -9 -9 -8 --------- Run | Scr Mat Min Mat Min Exi Min Distress Signals 4 | . 1 . 3 . . . Communications Jammed . | . . . . . . . Distress Signals . | . . . . . . . Times Spotted 126 | . 19 6 40 30 28 3 Peak Tracking Total 19 | . 4 3 5 19 9 3 Tactical Retreats 5 | . . . . . 5 . Traps | -11 -10 -10 -9 -9 -9 -8 ------- Run | Scr Mat Min Mat Min Exi Min Traps Triggered 1 | . . . 1 . . . Indirectly . | . . . . . . . Trap Hack Attempts . | . . . . . . . Triggered . | . . . . . . . Disarmed . | . . . . . . . Reprogrammed . | . . . . . . . Reused . | . . . . . . . Traps Extracted . | . . . . . . . Installed . | . . . . . . . Triggered . | . . . . . . . Exploded 3 | . . . . . 3 . Machines | -11 -10 -10 -9 -9 -9 -8 ---------- Run | Scr Mat Min Mat Min Exi Min Machines Disabled 9 | . . . . 1 8 . Max in Single Turn 1 | . . . . 1 1 . Machines Sabotaged . | . . . . . . . Garrisons Compromised . | . . . . . . . Overloaded Fab Kills . | . . . . . . . Hacking | -11 -10 -10 -9 -9 -9 -8 --------- Run | Scr Mat Min Mat Min Exi Min Machines Accessed 21 | . 9 1 10 . 1 . Terminals 15 | . 7 1 7 . . . Fabricators . | . . . . . . . Repair Stations 2 | . 1 . 1 . . . Recycling Units 1 | . 1 . . . . . Scanalyzers 2 | . . . 2 . . . Garrison Access . | . . . . . . . Total Hacks 80 | . 31 3 45 . 1 . Successful 49 | . 18 1 29 . 1 . Failed 29 | . 12 2 15 . . . Catastrophic 1 | . . 1 . . . . Database Lockouts 2 | . 1 . 1 . . . Manual 29 | . 12 . 17 . . . Terminals 56 | . 23 3 30 . . . Fabricators . | . . . . . . . Repair Stations 14 | . 6 . 8 . . . Recycling Units 2 | . 2 . . . . . Scanalyzers 7 | . . . 7 . . . Garrison Access . | . . . . . . . Terminal Hacks 17 | . 5 1 10 . 1 . Record 1 | . . . . . 1 . Part Schematic 1 | . 1 . . . . . Robot Analysis 3 | . 1 . 2 . . . Prototype ID Bank 4 | . 3 . 1 . . . Level Access Points 1 | . . 1 . . . . Branch Access Points 1 | . . . 1 . . . Emergency Access Points 1 | . . . 1 . . . Scanalyzer Index 1 | . . . 1 . . . Security Status 1 | . . . 1 . . . Transport Status 1 | . . . 1 . . . Hauler Manifests 1 | . . . 1 . . . Registered Components 1 | . . . 1 . . . Fabricator Hacks . | . . . . . . . Repair Station Hacks 12 | . 6 . 6 . . . Scan Component 6 | . 3 . 3 . . . Repair 6 | . 3 . 3 . . . Recycling Unit Hacks . | . . . . . . . Scanalyzer 7 | . . . 7 . . . Insert Component 4 | . . . 4 . . . Analyze 3 | . . . 3 . . . Garrison Access Hacks . | . . . . . . . Unauthorized Hacks 13 | . 7 . 6 . . . Terminals 11 | . 5 . 6 . . . Track 1 | . . . 1 . . . Assimilate 3 | . 2 . 1 . . . Botnet 4 | . 2 . 2 . . . Disrupt 1 | . . . 1 . . . Operators 2 | . 1 . 1 . . . Fabricators . | . . . . . . . Repair Stations . | . . . . . . . Recycling Units 2 | . 2 . . . . . Recyclers 1 | . 1 . . . . . Mask 1 | . 1 . . . . . Scanalyzers . | . . . . . . . Garrison Access . | . . . . . . . Data Cores Recovered 1 | . . . 1 . . . Used 1 | . . . 1 . . . Hacking Detections 18 | . 8 1 9 . . . Full Trace Events 2 | . . . 2 . . . Feedback Events . | . . . . . . . Feedback Blocked . | . . . . . . . Robot Schematics Acquired . | . . . . . . . Robots Built . | . . . . . . . Authchips . | . . . . . . . Time . | . . . . . . . Total Robot Build Rating . | . . . . . . . Part Schematics Acquired 4 | . 1 . 3 . . . Parts Built . | . . . . . . . Authchips . | . . . . . . . Time . | . . . . . . . Total Part Build Rating . | . . . . . . . Parts Repaired 6 | . 3 . 3 . . . Time 162 | . 78 . 84 . . . Parts Recycled . | . . . . . . . Recycled Matter . | . . . . . . . Retrieved Matter . | . . . . . . . Retrieved Components . | . . . . . . . Parts Scanalyzed 3 | . . . 3 . . . Part Schematics Acquired 3 | . . . 3 . . . Parts Damaged . | . . . . . . . Bothacking | -11 -10 -10 -9 -9 -9 -8 ------------ Run | Scr Mat Min Mat Min Exi Min Used RIF Installer . | . . . . . . . Robots Hacked . | . . . . . . . Non-combat . | . . . . . . . Combat . | . . . . . . . Robot Hacks Applied . | . . . . . . . Relay Couplers Released . | . . . . . . . Fabnet Peak Effective % . | . . . . . . . Robots Rewired . | . . . . . . . Allies Hacked . | . . . . . . . Hacks Repelled . | . . . . . . . Allies | -11 -10 -10 -9 -9 -9 -8 -------- Run | Scr Mat Min Mat Min Exi Min Total Allies 6 | . 2 3 1 . . . Largest Group 3 | . 2 3 3 . . . Highest-Rated Group 42 | . 20 40 42 . . . Highest-Rated Ally 16 | . 10 16 16 . . . Total Orders . | . . . . . . . Ally Attacks 69 | . . . 69 . . . Total Damage 696 | . . . 696 . . . Kills 10 | . . . 10 . . . Allies Corrupted . | . . . . . . . Allies Melted . | . . . . . . . Intel | -11 -10 -10 -9 -9 -9 -8 ------- Run | Scr Mat Min Mat Min Exi Min Robot Analysis Total 3 | . 1 . 2 . . . Derelict Logs Recovered 2 | . . 2 . . . . Drone Launches . | . . . . . . . Drone Recoveries . | . . . . . . . Exploration | -11 -10 -10 -9 -9 -9 -8 ------------- Run | Scr Mat Min Mat Min Exi Min Turns Passed 10646 | 125 1670 871 2595 1648 3705 32 Spaces Moved 4237 | 65 759 524 1054 469 1357 9 Core 11 | 11 . . . . . . Treads 4226 | 54 759 524 1054 469 1357 9 Legs . | . . . . . . . Wheels . | . . . . . . . Hover . | . . . . . . . Flight . | . . . . . . . Fastest Speed 50 | 50 160 160 160 330 170 330 Average Speed 220 | 141 178 160 200 330 247 330 Slowest Speed 330 | 160 320 160 330 330 330 330 Overloaded Moves . | . . . . . . . Propulsion Burnouts . | . . . . . . . Robots Hopped . | . . . . . . . Cave-ins Triggered . | . . . . . . . Exploration Rate (%) 66 | 5 97 99 75 98 87 3 Regions Visited 6 Branch Regions 4 Pre-discovered Areas 2 | . . 1 . . 1 . Known Exits Taken 2 | . . 1 1 . . . Unknown Exits Taken 4 | 1 1 . . 1 1 . Scrap Searched 2 | . . 1 . 1 . . Spaces Dug 12 | . 2 . . 10 . . Terrain Destroyed 58 | . 2 . . 52 . 4 Melee . | . . . . . . . Projectile 2 | . 2 . . . . . AOE 56 | . . . . 52 . 4 Terrain Rammed . | . . . . . . . Walls Destroyed . | . . . . . . . Machines Disabled . | . . . . . . . Actions | -11 -10 -10 -9 -9 -9 -8 --------- Run | Scr Mat Min Mat Min Exi Min Total 5102 | 88 974 539 1410 526 1554 11 Wait 363 | . 108 4 200 17 34 . Move 4231 | 64 758 523 1053 468 1356 9 Hop . | . . . . . . . Pick Up 89 | 11 19 . 27 6 26 . Fast Attach 18 | 2 1 . 8 1 6 . Attach 16 | 5 . . 4 2 5 . Detach 2 | . . . 1 . 1 . Swap 42 | . 11 1 13 5 11 1 Drop 67 | . 10 1 30 1 25 . Fire 274 | 6 67 10 74 26 90 1 Melee . | . . . . . . . Ram . | . . . . . . . Kick . | . . . . . . . Crush . | . . . . . . . Escape Stasis . | . . . . . . . Rewire . | . . . . . . . Trap . | . . . . . . . Miscellaneous . | . . . . . . . Route ------- -11/Scrapyard -10/Materials (discovered 4 exits: *Mat x3 / *Min) -10/Mines (discovered 2 exits: *Mat x2) -9/Materials (discovered 6 exits: [*Mat x2] / *Min x2 / *Sto x2) -9/Mines (discovered 3 exits: [*Mat x2] / *Exi) -9/Exiles -8/Mines History --------- Turn | Location | Event 44 | -11/Scrapyard | Discovered new exit (range 14) 126 | -11/Scrapyard | Entered Materials 141 | -10/Materials | Discovered new exit (range 16) 300 | -10/Materials | Discovered new exit (range 9) 318 | -10/Materials | Build established: Mutant 530 | -10/Materials | Central database locked down 549 | -10/Materials | Discovered new exit (range 4) 1031 | -10/Materials | Discovered new exit (range 3) 1646 | -10/Materials | Repaired Lgt. Treads 1673 | -10/Materials | Repaired Lgt. Treads 1700 | -10/Materials | Repaired Lgt. Treads 1796 | -10/Materials | Entered Mines 1796 | -10/Mines | Accompanied by 1 ally 1841 | -10/Mines | Met a Derelict bent on vengeance 1851 | -10/Mines | Learned Materials garrison access intel 2263 | -10/Mines | Discovered new exit (range 14) 2351 | -10/Mines | Identified exit to Materials 2381 | -10/Mines | Assisted by bots powering up and referring to "LRC-V3" 2667 | -10/Mines | Entered Materials 2667 | -9/Materials | Accompanied by 3 allies 2667 | -9/Materials | Evolved 2 slots: Utility x2 2789 | -9/Materials | Central database locked down 2794 | -9/Materials | Discovered new exit (range 7) 2814 | -9/Materials | Discovered new exit (range 17) 2921 | -9/Materials | Identified exit to Mines 2921 | -9/Materials | Identified exit to Storage 3097 | -9/Materials | Discovered new exit (range 18) 3185 | -9/Materials | Build established: Scavenger-Mutant 3833 | -9/Materials | Repaired Structural Scanner 3867 | -9/Materials | Repaired Cooling System 3894 | -9/Materials | Repaired Lgt. Treads 4431 | -9/Materials | Discovered new exit (range 18) 4624 | -9/Materials | Build established: Mutant 5262 | -9/Materials | Entered Mines 5325 | -9/Mines | Discovered new exit (range 15) 5717 | -9/Mines | Assembled infested the area 5755 | -9/Mines | Destroyed 20 combat bots 6094 | -9/Mines | Received a Rocket Launcher from a helpful Derelict 6201 | -9/Mines | Deemed a non-threat by the Exiles lab entrance 6201 | -9/Mines | Discovered new exit (range 5) 6351 | -9/Mines | Discovered new exit (range 13) 6910 | -9/Mines | Entered Exiles 7047 | -9/Exiles | Met 8R-AWN 7100 | -9/Exiles | Met EX-HEX 7232 | -9/Exiles | Met EX-DEC 7248 | -9/Exiles | Learned location of Zion (-6) 7551 | -9/Exiles | Discovered new exit (range 10) 8187 | -9/Exiles | Attacked by the Exiles 8294 | -9/Exiles | Core integrity fell below 50% 8349 | -9/Exiles | Core integrity fell below 20% 8403 | -9/Exiles | Destroyed 8R-AWN 8422 | -9/Exiles | Lost 5 parts (2p1n1u1w) 8920 | -9/Exiles | Destroyed EX-DEC 9097 | -9/Exiles | Destroyed EX-BIN 9113 | -9/Exiles | Found Prototype Processor 9113 | -9/Exiles | Identified Exp. Core Analyzer 9151 | -9/Exiles | Destroyed EX-HEX 9405 | -9/Exiles | Build established: Scavenger-Mutant 10615 | -9/Exiles | Entered Mines 10647 | -8/Mines | Destroyed self with Mini Grenade Launcher Last Messages --------------- 09181_ Acquired 3 matter. 09211_ Dropped Hvy. Assault Rifle. 09214_ Acquired Imp. System Guard. 09242_ Dropped Mni. Grenade Launcher. 09246_ Acquired Mak. Hacking Suite. 09384_ Dropped Lrg. Storage Unit. 09389_ Acquired Structural Scanner. 09397_ Acquired Sensor Array. 09401_ Acquired Machine Analyzer. 09405_ Acquired Imp. Terrain Scanner. 09413_ Acquired Hacking Suite. 09516_ Acquired Adv. Myomer Leg. 09646_ Acquired 10 matter. 09653_ Acquired Mak. System Shield. 09677_ Acquired Mni. Grenade Launcher. 09704_ Acquired Mak. Leg. 10204_ Dropped Mak. Leg. 10409_ Acquired Hcp. Storage Unit. LOCATION=UNKNOWN GOAL=ESCAPE Map ----- +----------------------------------------------------+ | | | | | | | | | | | | | | | | | | | | | | | | | | | | | | | | | | | | | | | | | | | | | ?????????????????????????????????????????????????? | | ??????????????????????????##########?????????????? | | ?????????????????????###### ##????????????? | | ?????????????????????# @ #????????????? | | ?????????????????????# # #### #????????????? | | ???????????????????????# ???## #????????????? | | ???????????????????????## #????# #????????????? | | ????????????????????????# #????# ##????????????? | | ????????????????????????#s#????#####?????????????? | | ????????????????????????s ??????????????????????? | | ????????????????????????" ??????????????????????? | | ????????????????????????" ??????????????????????? | | ????????????????????????" ??????????????????????? | | ???????????????????????? ??????????????????????? | | ???????????????????????? ##??????????????????????? | | ?????????????????????????????????????????????????? | | ?????????????????????????????????????????????????? | | ?????????????????????????????????????????????????? | | ?????????????????????????????????????????????????? | | ?????????????????????????????????????????????????? | | ?????????????????????????????????????????????????? | | ?????????????????????????????????????????????????? | | ?????????????????????????????????????????????????? | | ?????????????????????????????????????????????????? | | ?????????????????????????????????????????????????? | | ?????????????????????????????????????????????????? | | ?????????????????????????????????????????????????? | | ?????????????????????????????????????????????????? | +----------------------------------------------------+ Best States ------------- Heat Dissipation 52 Energy Generation 18 Energy Capacity 310 Matter Stores 500 Matter Capacity 500 Sight Range 18 Terrain Scan Range 16 Terrain Scan Density 10 Armor Coverage 150 Evasion (%) 50 Launcher Accuracy 20 Core Analysis 8 Recoil Reduction 2 Item Schematics ----------------- Huge Storage Unit | -10/Materials | Hacked Imp. Terrain Scanner | -9/Materials | Scanalyzed Hacking Suite | -9/Materials | Scanalyzed Machine Analyzer | -9/Materials | Scanalyzed Robot Schematics ------------------ None Fabricated ------------ Nothing Alien Tech Used ----------------- None Achievements -------------- None Challenges ------------ None Game ------ Seed RecoilDefenseDevice Manual? 0 Play Time 01:17:39 Cumulative 185.7 hours Start 2022.06.22 @ 10:20:36 End 2022.06.22 @ 11:41:55 Sessions 1 Manual Loads 0 Difficulty Rogue Special Mode None Game No. 32 Rogue 25 Adventurer 1 Explorer 6 Win Type - Total 11 Types 4/1/5/0/0/1/0/0/0 Lore% 76 Gallery% 73 Achievement% 66 Wizard Run 0 Options --------- ASCII 0 Keyboard 0 Movement Mouse Keybinds 0 Fullscreen 1 Font 18/SmallcapsGlow Map View 76x50 Tactical HUD 1 Map Filters NONE Filters NONE Steam 1 RUN: 3bc4e7f4-3776-4252-87c8-fe37aca58942